[Event "*** Titled Tuesday Blitz"]
[Site "Chess.com"]
[Date "2021.03.02"]
[Round "6"]
[White "esteban062000"]
[Black "Chimpinha"]
[Result "0-1"]
[WhiteElo "2164"]
[BlackElo "2410"]
[TimeControl "180+1"]
[EndTime "11:08:58 PST"]
[Termination "Chimpinha won by resignation"]

1. Nf3 {[%clk 0:03:00.9]} 1... Nf6 {[%clk 0:02:58.8]} 2. c4 {[%clk 0:02:59.3]}
2... g6 {[%clk 0:02:58.7]} 3. b4 {[%clk 0:02:59.3]} 3... Bg7 {[%clk 0:02:59.2]}
4. Bb2 {[%clk 0:02:59.9]} 4... O-O {[%clk 0:02:59]} 5. g3 {[%clk 0:03:00.4]}
5... d6 {[%clk 0:02:59.3]} 6. Bg2 {[%clk 0:03:00.6]} 6... e5 {[%clk 0:02:59.1]}
7. O-O {[%clk 0:03:00.6]} 7... a6 {[%clk 0:02:54.6]} 8. a4 {[%clk 0:02:56.5]}
8... Nc6 {[%clk 0:02:54.1]} 9. b5 {[%clk 0:02:56.3]} 9... Ne7 {[%clk 0:02:50.4]}
10. d3 {[%clk 0:02:52.1]} 10... h6 {[%clk 0:02:49]} 11. Nc3 {[%clk 0:02:34.7]}
11... Be6 {[%clk 0:02:47.4]} 12. Nd2 {[%clk 0:02:33.6]} 12... Qc8 {[%clk
0:02:45.1]} 13. Re1 {[%clk 0:02:22.4]} 13... Bh3 {[%clk 0:02:42.7]} 14. Bh1
{[%clk 0:02:22.3]} 14... Ng4 {[%clk 0:02:43.3]} 15. Nf3 {[%clk 0:01:54.2]} 15...
f5 {[%clk 0:02:40.7]} 16. Qb3 {[%clk 0:01:51.1]} 16... Kh8 {[%clk 0:02:39.1]}
17. e3 {[%clk 0:01:45.9]} 17... axb5 {[%clk 0:02:23.9]} 18. axb5 {[%clk
0:01:44.3]} 18... Rxa1 {[%clk 0:02:22.9]} 19. Rxa1 {[%clk 0:01:39.6]} 19... f4
{[%clk 0:02:20.9]} 20. exf4 {[%clk 0:01:37.1]} 20... exf4 {[%clk 0:02:19.7]} 21.
Ne4 {[%clk 0:01:24.9]} 21... Nf5 {[%clk 0:01:48.1]} 22. Bxg7+ {[%clk 0:01:22.9]}
22... Kxg7 {[%clk 0:01:47.8]} 23. Qb2+ {[%clk 0:01:10.9]} 23... Kg8 {[%clk
0:01:33.1]} 24. Bg2 {[%clk 0:01:11]} 24... Bxg2 {[%clk 0:01:22.6]} 25. Kxg2
{[%clk 0:01:11.9]} 25... Qe6 {[%clk 0:00:37.1]} 26. Re1 {[%clk 0:01:02]} 26...
Qf7 {[%clk 0:00:29.5]} 27. Nfd2 {[%clk 0:00:11]} 27... fxg3 {[%clk 0:00:28.4]}
28. hxg3 {[%clk 0:00:10.3]} 28... Ne5 {[%clk 0:00:23.8]} 29. Qc3 {[%clk
0:00:09.6]} 29... h5 {[%clk 0:00:17]} 30. f4 {[%clk 0:00:09.8]} 30... Ng4 {[%clk
0:00:16]} 31. Ng5 {[%clk 0:00:10.5]} 31... Qf6 {[%clk 0:00:13.6]} 32. Qxf6
{[%clk 0:00:10.3]} 32... Nxf6 {[%clk 0:00:12.6]} 33. Nde4 {[%clk 0:00:11.2]}
33... Nxe4 {[%clk 0:00:12.3]} 34. Rxe4 {[%clk 0:00:12.1]} 34... Ra8 {[%clk
0:00:06.5]} 35. Re6 {[%clk 0:00:12.1]} 35... Kg7 {[%clk 0:00:06.1]} 36. Re2
{[%clk 0:00:11]} 36... Ra3 {[%clk 0:00:06.1]} 37. Ne6+ {[%clk 0:00:11.1]} 37...
Kf6 {[%clk 0:00:05.3]} 38. Nxc7 {[%clk 0:00:11.4]} 38... Rxd3 {[%clk 0:00:05.8]}
39. Nd5+ {[%clk 0:00:11.4]} 39... Kg7 {[%clk 0:00:05]} 40. Nb4 {[%clk
0:00:11.7]} 40... Rxg3+ {[%clk 0:00:04.9]} 41. Kf2 {[%clk 0:00:11.1]} 41... Rc3
{[%clk 0:00:05.4]} 42. Re4 {[%clk 0:00:11.4]} 42... h4 {[%clk 0:00:04.2]} 43.
Nd5 {[%clk 0:00:09.7]} 43... Rc2+ {[%clk 0:00:03.9]} 44. Ke1 {[%clk 0:00:09.1]}
44... h3 {[%clk 0:00:03.8]} 45. Re2 {[%clk 0:00:09.3]} 45... Rxc4 {[%clk
0:00:03.2]} 46. Ne3 {[%clk 0:00:08.2]} 46... Rc1+ {[%clk 0:00:03.5]} 47. Kf2
{[%clk 0:00:07.7]} 47... Rc3 {[%clk 0:00:03.8]} 48. Nxf5+ {[%clk 0:00:07.6]}
48... gxf5 {[%clk 0:00:04.4]} 49. Re7+ {[%clk 0:00:08.2]} 49... Kf6 {[%clk
0:00:05]} 50. Rh7 {[%clk 0:00:08.4]} 50... Rb3 {[%clk 0:00:05.1]} 51. Rh6+
{[%clk 0:00:07.7]} 51... Ke7 {[%clk 0:00:05.4]} 52. Rh7+ {[%clk 0:00:08]} 52...
Ke6 {[%clk 0:00:05.8]} 53. Rh6+ {[%clk 0:00:08.5]} 53... Kd5 {[%clk 0:00:06.1]}
54. b6 {[%clk 0:00:09.1]} 54... Kc6 {[%clk 0:00:06.3]} 55. Rh5 {[%clk
0:00:07.4]} 55... Kxb6 {[%clk 0:00:06.6]} 56. Kg1 {[%clk 0:00:07.3]} 56... Rf3
{[%clk 0:00:06]} 57. Rxf5 {[%clk 0:00:06.7]} 57... Kc6 {[%clk 0:00:06.6]} 58.
Kh2 {[%clk 0:00:07.3]} 58... b5 {[%clk 0:00:05.8]} 59. Rf8 {[%clk 0:00:08.2]}
59... b4 {[%clk 0:00:06]} 60. Rc8+ {[%clk 0:00:08.8]} 60... Kd7 {[%clk
0:00:05.8]} 61. Rb8 {[%clk 0:00:09.2]} 61... b3 {[%clk 0:00:05.9]} 62. Rb7+
{[%clk 0:00:08.9]} 62... Ke6 {[%clk 0:00:05.6]} 63. Rb5 {[%clk 0:00:08.7]} 63...
d5 {[%clk 0:00:05.4]} 64. Rb6+ {[%clk 0:00:07.9]} 64... Kf5 {[%clk 0:00:05.4]}
65. Rb4 {[%clk 0:00:08.8]} 65... Rc3 {[%clk 0:00:04.6]} 66. Rb5 {[%clk
0:00:08.3]} 66... Ke4 {[%clk 0:00:03.3]} 67. Rb4+ {[%clk 0:00:08.5]} 67... d4
{[%clk 0:00:03.8]} 68. f5 {[%clk 0:00:08.3]} 68... Kxf5 {[%clk 0:00:03.8]} 69.
Rxd4 {[%clk 0:00:08.5]} 69... Ke5 {[%clk 0:00:04.5]} 70. Rb4 {[%clk 0:00:08.7]}
70... Kd5 {[%clk 0:00:04.4]} 71. Rb8 {[%clk 0:00:08.6]} 71... Kc4 {[%clk
0:00:04.8]} 72. Rc8+ {[%clk 0:00:08.8]} 72... Kd3 {[%clk 0:00:05.3]} 73. Rd8+
{[%clk 0:00:08.8]} 73... Kc2 {[%clk 0:00:05.9]} 74. Rb8 {[%clk 0:00:09]} 74...
b2 {[%clk 0:00:06.6]} 0-1

[Event "*** Titled Tuesday Blitz"]
[Site "Chess.com"]
[Date "2021.03.02"]
[Round "6"]
[White "C_K_G"]
[Black "Taktikmonster"]
[Result "0-1"]
[WhiteElo "2011"]
[BlackElo "2375"]
[TimeControl "180+1"]
[EndTime "11:09:02 PST"]
[Termination "Taktikmonster won on time"]

1. e4 {[%clk 0:02:59.8]} 1... c5 {[%clk 0:02:50.7]} 2. Nf3 {[%clk 0:02:58.6]}
2... d6 {[%clk 0:02:50.1]} 3. c3 {[%clk 0:02:58.6]} 3... Nf6 {[%clk 0:02:44.2]}
4. Bd3 {[%clk 0:02:59.5]} 4... Bg4 {[%clk 0:02:42.1]} 5. Bc2 {[%clk 0:02:56.5]}
5... Nc6 {[%clk 0:02:39.2]} 6. O-O {[%clk 0:02:52.4]} 6... Ne5 {[%clk
0:02:23.2]} 7. Ba4+ {[%clk 0:02:49.2]} 7... Bd7 {[%clk 0:02:15.1]} 8. Nxe5
{[%clk 0:02:46.3]} 8... dxe5 {[%clk 0:02:14.3]} 9. d4 {[%clk 0:02:45.1]} 9...
exd4 {[%clk 0:01:43.3]} 10. cxd4 {[%clk 0:02:46]} 10... Nxe4 {[%clk 0:01:41]}
11. Re1 {[%clk 0:02:40.4]} 11... Nf6 {[%clk 0:01:33.1]} 12. dxc5 {[%clk
0:02:38.8]} 12... e6 {[%clk 0:01:22.5]} 13. Nc3 {[%clk 0:02:29.4]} 13... Bxc5
{[%clk 0:01:18.5]} 14. Be3 {[%clk 0:02:12.8]} 14... Bxe3 {[%clk 0:01:14.5]} 15.
Rxe3 {[%clk 0:02:13.3]} 15... O-O {[%clk 0:01:13.6]} 16. Bxd7 {[%clk 0:02:10.2]}
16... Qxd7 {[%clk 0:01:14.5]} 17. Qe2 {[%clk 0:02:05.2]} 17... Rfd8 {[%clk
0:01:11]} 18. h3 {[%clk 0:02:02.6]} 18... Qd2 {[%clk 0:01:09.5]} 19. Qb5 {[%clk
0:02:00.1]} 19... Nd5 {[%clk 0:00:40.6]} 20. Nxd5 {[%clk 0:01:46.9]} 20... Qxd5
{[%clk 0:00:41.5]} 21. Qe2 {[%clk 0:01:37.1]} 21... h6 {[%clk 0:00:40.4]} 22.
Rg3 {[%clk 0:01:34.5]} 22... Rac8 {[%clk 0:00:40]} 23. b3 {[%clk 0:01:19]} 23...
Qd2 {[%clk 0:00:31.3]} 24. Qe5 {[%clk 0:01:12.4]} 24... g6 {[%clk 0:00:18.5]}
25. Re1 {[%clk 0:01:00.3]} 25... Rc1 {[%clk 0:00:17.5]} 26. Rxc1 {[%clk
0:00:57.3]} 26... Qxc1+ {[%clk 0:00:18.4]} 27. Kh2 {[%clk 0:00:57.3]} 27... Rd1
{[%clk 0:00:19.3]} 28. Rc3 {[%clk 0:00:48.3]} 28... Rh1+ {[%clk 0:00:14.3]} 29.
Kg3 {[%clk 0:00:47.9]} 29... Qg5+ {[%clk 0:00:15]} 30. Qxg5 {[%clk 0:00:47.1]}
30... hxg5 {[%clk 0:00:15.9]} 31. Rc7 {[%clk 0:00:44]} 31... Ra1 {[%clk
0:00:16.4]} 32. a4 {[%clk 0:00:39.3]} 32... b6 {[%clk 0:00:16.3]} 33. Rxa7
{[%clk 0:00:37.6]} 33... Ra3 {[%clk 0:00:16.8]} 34. Rb7 {[%clk 0:00:37.4]} 34...
Rxb3+ {[%clk 0:00:17.2]} 35. f3 {[%clk 0:00:37.1]} 35... Rb4 {[%clk 0:00:15.6]}
36. Ra7 {[%clk 0:00:31]} 36... Kg7 {[%clk 0:00:15.4]} 37. Ra8 {[%clk 0:00:28.8]}
37... Kf6 {[%clk 0:00:15.6]} 38. Ra6 {[%clk 0:00:24.4]} 38... Kf5 {[%clk
0:00:14]} 39. Ra7 {[%clk 0:00:18.3]} 39... f6 {[%clk 0:00:14]} 40. Ra8 {[%clk
0:00:17]} 40... e5 {[%clk 0:00:14.1]} 41. Ra7 {[%clk 0:00:11.3]} 41... b5 {[%clk
0:00:11.3]} 42. a5 {[%clk 0:00:09.6]} 42... Ra4 {[%clk 0:00:11]} 43. a6 {[%clk
0:00:06.2]} 43... b4 {[%clk 0:00:10.6]} 44. Rb7 {[%clk 0:00:05.7]} 44... Rxa6
{[%clk 0:00:10]} 45. Rxb4 {[%clk 0:00:05.5]} 45... Ra3 {[%clk 0:00:10.6]} 46.
Rb5 {[%clk 0:00:05]} 46... Ra4 {[%clk 0:00:09]} 47. Rb6 {[%clk 0:00:03.3]} 47...
Ra3 {[%clk 0:00:04.7]} 48. Rb7 {[%clk 0:00:02.7]} 48... Ra6 {[%clk 0:00:04.6]}
49. Rb5 {[%clk 0:00:02.6]} 49... Ke6 {[%clk 0:00:04.9]} 50. Rb4 {[%clk 0:00:03]}
50... f5 {[%clk 0:00:05.3]} 51. Rb3 {[%clk 0:00:03.9]} 51... Kf6 {[%clk
0:00:05.8]} 52. Kh2 {[%clk 0:00:03.9]} 52... Re6 {[%clk 0:00:06.3]} 53. Rc3
{[%clk 0:00:04.8]} 53... f4 {[%clk 0:00:06.1]} 54. Re3 {[%clk 0:00:05.7]} 54...
Kf5 {[%clk 0:00:06.5]} 55. Re4 {[%clk 0:00:04.8]} 55... Rd6 {[%clk 0:00:07]} 56.
h4 {[%clk 0:00:05.5]} 56... gxh4 {[%clk 0:00:06.7]} 57. Kh3 {[%clk 0:00:05.4]}
57... g5 {[%clk 0:00:07.3]} 58. Re2 {[%clk 0:00:06]} 58... Rd4 {[%clk
0:00:07.2]} 59. Kh2 {[%clk 0:00:05.9]} 59... e4 {[%clk 0:00:07.2]} 60. Re1
{[%clk 0:00:06.4]} 60... e3 {[%clk 0:00:07.3]} 61. Rc1 {[%clk 0:00:05.1]} 61...
e2 {[%clk 0:00:06.7]} 62. Re1 {[%clk 0:00:05.8]} 62... Rd2 {[%clk 0:00:06.9]}
63. Kg1 {[%clk 0:00:05.3]} 63... Ke5 {[%clk 0:00:07.5]} 64. Kf2 {[%clk
0:00:06.2]} 64... Kd4 {[%clk 0:00:07.6]} 65. Ra1 {[%clk 0:00:06.6]} 65... e1=Q+
{[%clk 0:00:06.8]} 66. Kxe1 {[%clk 0:00:05.5]} 66... Rxg2 {[%clk 0:00:07.7]} 67.
Ra5 {[%clk 0:00:05.8]} 67... h3 {[%clk 0:00:05.5]} 68. Ra7 {[%clk 0:00:01.9]}
68... h2 {[%clk 0:00:05]} 69. Rh7 {[%clk 0:00:01.3]} 69... Rg1+ {[%clk
0:00:05.1]} 0-1

[Event "*** Titled Tuesday Blitz"]
[Site "Chess.com"]
[Date "2021.03.02"]
[Round "6"]
[White "Treacherous_horse64"]
[Black "NoGuru"]
[Result "0-1"]
[WhiteElo "2570"]
[BlackElo "2307"]
[TimeControl "180+1"]
[EndTime "11:09:03 PST"]
[Termination "NoGuru won by checkmate"]

1. d4 {[%clk 0:03:00.5]} 1... d5 {[%clk 0:02:59.8]} 2. c4 {[%clk 0:02:59]} 2...
e6 {[%clk 0:02:59.8]} 3. Nc3 {[%clk 0:02:56.6]} 3... Be7 {[%clk 0:03:00]} 4.
cxd5 {[%clk 0:02:50.8]} 4... exd5 {[%clk 0:02:59.7]} 5. Bf4 {[%clk 0:02:51.3]}
5... c6 {[%clk 0:02:59.8]} 6. e3 {[%clk 0:02:50.6]} 6... Bf5 {[%clk 0:02:55.7]}
7. g4 {[%clk 0:02:47.5]} 7... Be6 {[%clk 0:02:55.7]} 8. h3 {[%clk 0:02:23.2]}
8... Nd7 {[%clk 0:02:55.1]} 9. Qc2 {[%clk 0:02:19.7]} 9... h5 {[%clk 0:02:49.4]}
10. gxh5 {[%clk 0:02:19]} 10... Rxh5 {[%clk 0:02:48.1]} 11. Bg2 {[%clk 0:02:17]}
11... Bf5 {[%clk 0:02:40.1]} 12. Qe2 {[%clk 0:02:16.5]} 12... g6 {[%clk
0:02:35.7]} 13. Bf3 {[%clk 0:02:14.6]} 13... Rh8 {[%clk 0:02:34.6]} 14. e4
{[%clk 0:02:09.4]} 14... dxe4 {[%clk 0:02:33.7]} 15. Nxe4 {[%clk 0:02:08.2]}
15... Bxe4 {[%clk 0:02:26.1]} 16. Bxe4 {[%clk 0:02:05.9]} 16... Ngf6 {[%clk
0:02:07.5]} 17. Bg2 {[%clk 0:02:04.8]} 17... Kf8 {[%clk 0:01:55.4]} 18. Nf3
{[%clk 0:02:03.9]} 18... Qa5+ {[%clk 0:01:51.6]} 19. Bd2 {[%clk 0:02:02.8]}
19... Bb4 {[%clk 0:01:51.1]} 20. O-O {[%clk 0:01:48.7]} 20... Re8 {[%clk
0:01:50.6]} 21. Qd3 {[%clk 0:01:48.4]} 21... Bxd2 {[%clk 0:01:44.9]} 22. Nxd2
{[%clk 0:01:49.3]} 22... Kg7 {[%clk 0:01:37.2]} 23. Nc4 {[%clk 0:01:47]} 23...
Qa6 {[%clk 0:01:19.7]} 24. b3 {[%clk 0:01:45.8]} 24... Rh5 {[%clk 0:00:56.8]}
25. Qg3 {[%clk 0:01:44]} 25... Nb6 {[%clk 0:00:40.5]} 26. Ne5 {[%clk 0:01:41.7]}
26... Nbd5 {[%clk 0:00:32.9]} 27. Bf3 {[%clk 0:01:32.5]} 27... Rhh8 {[%clk
0:00:28.8]} 28. Kg2 {[%clk 0:01:32.6]} 28... Qa5 {[%clk 0:00:27.9]} 29. Rh1
{[%clk 0:01:27.7]} 29... Qc3 {[%clk 0:00:27.4]} 30. Rad1 {[%clk 0:01:24.3]}
30... Qc2 {[%clk 0:00:27.3]} 31. Bxd5 {[%clk 0:01:20.3]} 31... Nxd5 {[%clk
0:00:26.1]} 32. Qf3 {[%clk 0:01:20.4]} 32... Qf5 {[%clk 0:00:24.3]} 33. Qxf5
{[%clk 0:01:18.2]} 33... gxf5 {[%clk 0:00:24.7]} 34. Kf3 {[%clk 0:01:19.1]}
34... Kf6 {[%clk 0:00:24.5]} 35. Rde1 {[%clk 0:01:15.1]} 35... Rd8 {[%clk
0:00:24.4]} 36. h4 {[%clk 0:01:10.4]} 36... Ne7 {[%clk 0:00:24.3]} 37. Rd1
{[%clk 0:01:06.1]} 37... Ng6 {[%clk 0:00:24.2]} 38. Nc4 {[%clk 0:00:52.5]} 38...
Nxh4+ {[%clk 0:00:22.5]} 39. Kg3 {[%clk 0:00:53]} 39... Ng6 {[%clk 0:00:21.3]}
40. Rxh8 {[%clk 0:00:50.7]} 40... Nxh8 {[%clk 0:00:20.8]} 41. Kf3 {[%clk
0:00:49.2]} 41... Ng6 {[%clk 0:00:20.7]} 42. Ke3 {[%clk 0:00:49]} 42... Ne7
{[%clk 0:00:20.1]} 43. Ne5 {[%clk 0:00:48.7]} 43... Nd5+ {[%clk 0:00:19.2]} 44.
Kd3 {[%clk 0:00:48.6]} 44... Rh8 {[%clk 0:00:18.1]} 45. Nd7+ {[%clk 0:00:45.6]}
45... Ke7 {[%clk 0:00:17.5]} 46. Nc5 {[%clk 0:00:42.4]} 46... b6 {[%clk
0:00:17.2]} 47. Re1+ {[%clk 0:00:42.3]} 47... Kd6 {[%clk 0:00:15.8]} 48. Na4
{[%clk 0:00:41.9]} 48... Nb4+ {[%clk 0:00:13.9]} 49. Kd2 {[%clk 0:00:35.4]}
49... Nxa2 {[%clk 0:00:12.4]} 50. Nb2 {[%clk 0:00:35.9]} 50... Nb4 {[%clk
0:00:12.1]} 51. Nc4+ {[%clk 0:00:36.1]} 51... Kd7 {[%clk 0:00:11.2]} 52. Ne5+
{[%clk 0:00:35.7]} 52... Kc7 {[%clk 0:00:10]} 53. Nxf7 {[%clk 0:00:35.3]} 53...
Rh3 {[%clk 0:00:09.6]} 54. Re7+ {[%clk 0:00:34.9]} 54... Kb8 {[%clk 0:00:07.9]}
55. Nd6 {[%clk 0:00:33.5]} 55... Rxb3 {[%clk 0:00:07.2]} 56. Rb7+ {[%clk
0:00:34.4]} 56... Ka8 {[%clk 0:00:07.5]} 57. Rf7 {[%clk 0:00:35.3]} 57... Kb8
{[%clk 0:00:07.9]} 58. Rb7+ {[%clk 0:00:33.7]} 58... Ka8 {[%clk 0:00:07.7]} 59.
Re7 {[%clk 0:00:34.3]} 59... Kb8 {[%clk 0:00:07.9]} 60. Nxf5 {[%clk 0:00:32.1]}
60... a5 {[%clk 0:00:07.6]} 61. Nd6 {[%clk 0:00:26.9]} 61... a4 {[%clk
0:00:07.8]} 62. Rb7+ {[%clk 0:00:26.1]} 62... Ka8 {[%clk 0:00:07.1]} 63. Rh7
{[%clk 0:00:12.8]} 63... a3 {[%clk 0:00:07.3]} 64. Rh1 {[%clk 0:00:12.6]} 64...
Rb2+ {[%clk 0:00:07.2]} 65. Kc3 {[%clk 0:00:12.4]} 65... Nd5+ {[%clk 0:00:06.9]}
66. Kd3 {[%clk 0:00:12.5]} 66... a2 {[%clk 0:00:07.4]} 67. Ra1 {[%clk
0:00:12.4]} 67... Nb4+ {[%clk 0:00:07.5]} 68. Kc3 {[%clk 0:00:12.6]} 68... Rb1
{[%clk 0:00:05.8]} 69. Rxa2+ {[%clk 0:00:09.6]} 69... Nxa2+ {[%clk 0:00:06]} 70.
Kd3 {[%clk 0:00:10.2]} 70... Ka7 {[%clk 0:00:05.1]} 71. Ke3 {[%clk 0:00:10.6]}
71... Ka6 {[%clk 0:00:05.6]} 72. Nc8 {[%clk 0:00:11.5]} 72... b5 {[%clk
0:00:05.8]} 73. Nd6 {[%clk 0:00:12.4]} 73... b4 {[%clk 0:00:06.1]} 74. Ne4
{[%clk 0:00:13.3]} 74... b3 {[%clk 0:00:06.4]} 75. Nc5+ {[%clk 0:00:14.2]} 75...
Kb5 {[%clk 0:00:05.8]} 76. Kd3 {[%clk 0:00:15.1]} 76... b2 {[%clk 0:00:06.1]}
77. Ne4 {[%clk 0:00:16]} 77... Rd1+ {[%clk 0:00:06]} 78. Kc2 {[%clk 0:00:16.9]}
78... b1=Q# {[%clk 0:00:06.4]} 0-1

[Event "*** Titled Tuesday Blitz"]
[Site "Chess.com"]
[Date "2021.03.02"]
[Round "6"]
[White "Fortitudine"]
[Black "tgpgoat"]
[Result "1/2-1/2"]
[WhiteElo "2312"]
[BlackElo "2100"]
[TimeControl "180+1"]
[EndTime "11:09:37 PST"]
[Termination "Game drawn - insufficient material"]

1. c4 {[%clk 0:03:00.9]} 1... e5 {[%clk 0:02:58.7]} 2. g3 {[%clk 0:02:59.4]}
2... Nc6 {[%clk 0:02:58.5]} 3. Bg2 {[%clk 0:02:59.4]} 3... Nf6 {[%clk
0:02:59.4]} 4. Nc3 {[%clk 0:02:59]} 4... Bb4 {[%clk 0:02:55.5]} 5. Nd5 {[%clk
0:02:55.5]} 5... Nxd5 {[%clk 0:02:53.6]} 6. cxd5 {[%clk 0:02:56.4]} 6... Nd4
{[%clk 0:02:52.9]} 7. a3 {[%clk 0:02:38.5]} 7... Be7 {[%clk 0:02:50.9]} 8. e3
{[%clk 0:02:29.9]} 8... Nf5 {[%clk 0:02:49.7]} 9. Ne2 {[%clk 0:02:27.9]} 9...
O-O {[%clk 0:02:48.4]} 10. O-O {[%clk 0:02:27]} 10... d6 {[%clk 0:02:46.8]} 11.
b3 {[%clk 0:02:16.8]} 11... Nh6 {[%clk 0:02:45.3]} 12. Bb2 {[%clk 0:02:15.5]}
12... f5 {[%clk 0:02:44.5]} 13. Rc1 {[%clk 0:02:13.6]} 13... Bd7 {[%clk
0:02:43.5]} 14. f4 {[%clk 0:02:06.8]} 14... e4 {[%clk 0:02:41.3]} 15. Nd4 {[%clk
0:01:57.9]} 15... Rc8 {[%clk 0:02:39.8]} 16. Qc2 {[%clk 0:01:50.4]} 16... Bf6
{[%clk 0:02:37.7]} 17. a4 {[%clk 0:01:33.6]} 17... c5 {[%clk 0:02:36.2]} 18.
dxc6 {[%clk 0:01:31.8]} 18... Bxc6 {[%clk 0:02:35.6]} 19. Bc3 {[%clk 0:01:24.5]}
19... Qd7 {[%clk 0:02:26.2]} 20. Qb2 {[%clk 0:01:19.4]} 20... Bd5 {[%clk
0:02:14.3]} 21. Rfd1 {[%clk 0:01:12.8]} 21... Qf7 {[%clk 0:02:13.3]} 22. Bb4
{[%clk 0:00:56.3]} 22... Rxc1 {[%clk 0:02:02.3]} 23. Rxc1 {[%clk 0:00:57.2]}
23... Rd8 {[%clk 0:02:02.2]} 24. Bf1 {[%clk 0:00:49.2]} 24... g6 {[%clk
0:01:45]} 25. Bc4 {[%clk 0:00:46.5]} 25... Bxc4 {[%clk 0:01:44.7]} 26. Rxc4
{[%clk 0:00:46.9]} 26... Qg7 {[%clk 0:01:41.7]} 27. Bc3 {[%clk 0:00:46.9]} 27...
Nf7 {[%clk 0:01:35.1]} 28. Ne2 {[%clk 0:00:46]} 28... Bxc3 {[%clk 0:01:34.1]}
29. Qxc3 {[%clk 0:00:46.3]} 29... Qxc3 {[%clk 0:01:33.1]} 30. Nxc3 {[%clk
0:00:45.5]} 30... Rd7 {[%clk 0:01:32.5]} 31. Nd5 {[%clk 0:00:44.8]} 31... Kg7
{[%clk 0:01:31.2]} 32. a5 {[%clk 0:00:37.1]} 32... Nd8 {[%clk 0:01:29.8]} 33. b4
{[%clk 0:00:34.3]} 33... Nc6 {[%clk 0:01:26.2]} 34. a6 {[%clk 0:00:32]} 34...
Ne7 {[%clk 0:01:16.7]} 35. Nxe7 {[%clk 0:00:25.7]} 35... Rxe7 {[%clk 0:01:15.9]}
36. b5 {[%clk 0:00:23.2]} 36... bxa6 {[%clk 0:00:56.4]} 37. bxa6 {[%clk
0:00:24.1]} 37... Kf6 {[%clk 0:00:56.6]} 38. Rc8 {[%clk 0:00:22.3]} 38... Ke6
{[%clk 0:00:55.9]} 39. Rb8 {[%clk 0:00:20.5]} 39... d5 {[%clk 0:00:52]} 40. Kf2
{[%clk 0:00:15.3]} 40... Kd6 {[%clk 0:00:51.3]} 41. Ke2 {[%clk 0:00:15.4]} 41...
Kc6 {[%clk 0:00:46.9]} 42. d3 {[%clk 0:00:15.1]} 42... Rd7 {[%clk 0:00:43.1]}
43. Kd2 {[%clk 0:00:14]} 43... Rc7 {[%clk 0:00:39.5]} 44. Kc3 {[%clk 0:00:11.8]}
44... Kc5 {[%clk 0:00:32.3]} 45. Rb7 {[%clk 0:00:06.1]} 45... Kc6 {[%clk
0:00:30.4]} 46. Rb8 {[%clk 0:00:04]} 46... Kc5 {[%clk 0:00:28.6]} 47. Rb7 {[%clk
0:00:01.8]} 47... Kd6+ {[%clk 0:00:26.5]} 48. Kd4 {[%clk 0:00:01.5]} 48... exd3
{[%clk 0:00:25.3]} 49. Kxd3 {[%clk 0:00:02.4]} 49... Kc6 {[%clk 0:00:25.6]} 50.
Rb8 {[%clk 0:00:02.1]} 50... Kc5 {[%clk 0:00:22.5]} 51. Rd8 {[%clk 0:00:02]}
51... Kb6 {[%clk 0:00:20.5]} 52. Kd4 {[%clk 0:00:02.4]} 52... Kxa6 {[%clk
0:00:20.7]} 53. Rxd5 {[%clk 0:00:02.7]} 53... Kb6 {[%clk 0:00:20.8]} 54. Ke5
{[%clk 0:00:03.1]} 54... a5 {[%clk 0:00:20.9]} 55. Rd3 {[%clk 0:00:02.4]} 55...
Ra7 {[%clk 0:00:20.6]} 56. Kf6 {[%clk 0:00:02.6]} 56... a4 {[%clk 0:00:20.6]}
57. Ra3 {[%clk 0:00:03.3]} 57... Kb5 {[%clk 0:00:21]} 58. g4 {[%clk 0:00:03.2]}
58... fxg4 {[%clk 0:00:19.9]} 59. e4 {[%clk 0:00:03.6]} 59... Kb4 {[%clk
0:00:20.4]} 60. Ra1 {[%clk 0:00:03.8]} 60... a3 {[%clk 0:00:20.7]} 61. e5 {[%clk
0:00:04.2]} 61... Kb3 {[%clk 0:00:21.1]} 62. e6 {[%clk 0:00:04.7]} 62... Kb2
{[%clk 0:00:20.9]} 63. Rg1 {[%clk 0:00:04.7]} 63... a2 {[%clk 0:00:20.8]} 64.
Rg2+ {[%clk 0:00:05.3]} 64... Kb1 {[%clk 0:00:20.7]} 65. Rg1+ {[%clk 0:00:04.8]}
65... Kb2 {[%clk 0:00:20.8]} 66. e7 {[%clk 0:00:05.3]} 66... Rxe7 {[%clk
0:00:20.1]} 67. Kxe7 {[%clk 0:00:06.2]} 67... a1=Q {[%clk 0:00:20.4]} 68. Rxa1
{[%clk 0:00:06.9]} 68... Kxa1 {[%clk 0:00:21.3]} 69. Kf6 {[%clk 0:00:07.3]}
69... h5 {[%clk 0:00:21.3]} 70. Kxg6 {[%clk 0:00:07.4]} 70... h4 {[%clk
0:00:21]} 71. f5 {[%clk 0:00:07.6]} 71... g3 {[%clk 0:00:21.2]} 72. f6 {[%clk
0:00:07.8]} 72... g2 {[%clk 0:00:19.8]} 73. f7 {[%clk 0:00:08.1]} 73... g1=Q+
{[%clk 0:00:20.1]} 74. Kh7 {[%clk 0:00:08.4]} 74... Qf2 {[%clk 0:00:17.3]} 75.
Kg8 {[%clk 0:00:08.4]} 75... Qg2+ {[%clk 0:00:16.9]} 76. Kh8 {[%clk 0:00:08.6]}
76... Qf3 {[%clk 0:00:16]} 77. Kg8 {[%clk 0:00:08.4]} 77... Qg4+ {[%clk
0:00:15.9]} 78. Kh8 {[%clk 0:00:08.6]} 78... Qf5 {[%clk 0:00:15.9]} 79. Kg8
{[%clk 0:00:08.8]} 79... Qg6+ {[%clk 0:00:16]} 80. Kf8 {[%clk 0:00:07.2]} 80...
Kb2 {[%clk 0:00:15.5]} 81. h3 {[%clk 0:00:07.5]} 81... Qf5 {[%clk 0:00:13.2]}
82. Kg8 {[%clk 0:00:07.8]} 82... Qe6 {[%clk 0:00:10.4]} 83. Kh8 {[%clk
0:00:07.1]} 83... Qf6+ {[%clk 0:00:10.2]} 84. Kg8 {[%clk 0:00:07]} 84... Qe6
{[%clk 0:00:10.6]} 85. Kh8 {[%clk 0:00:07.3]} 85... Qxh3 {[%clk 0:00:11]} 86.
f8=Q {[%clk 0:00:07.2]} 86... Qc3+ {[%clk 0:00:11]} 87. Kh7 {[%clk 0:00:07.2]}
87... h3 {[%clk 0:00:11.3]} 88. Qb8+ {[%clk 0:00:05.9]} 88... Kc2 {[%clk
0:00:11.4]} 89. Qh2+ {[%clk 0:00:06.2]} 89... Kb3 {[%clk 0:00:10.9]} 90. Kh6
{[%clk 0:00:05.9]} 90... Kc4 {[%clk 0:00:08.8]} 91. Kh5 {[%clk 0:00:05.7]} 91...
Qf3+ {[%clk 0:00:08.2]} 92. Kh4 {[%clk 0:00:05.6]} 92... Qd3 {[%clk 0:00:07.2]}
93. Qxh3 {[%clk 0:00:05.3]} 93... Qxh3+ {[%clk 0:00:07]} 94. Kxh3 {[%clk
0:00:06.2]} 1/2-1/2